Cogmind - Beta 12 @@@ ROGUE MODE // 2023.03.06 @ 07:49:06 Player: ArabianSandBoa Result: Self-destructed Performance ------------- Evolutions (2) 1000 Regions Visited (4) 800 Robots Destroyed (20) 100 Value Destroyed (391) 391 Prototype IDs (3) 60 Alien Tech Used (0) 0 Bonus (2) 2 TOTAL SCORE: 2353 Bonus ------- High Alert Combat Kills 2 Cogmind --------- Core Integrity 171/550 Matter 81/300 Energy 100/100 System Corruption 0% Temperature Cool (0) Movement Flying (120) Ox1 Location -8/Materials Parts ------- > --- POWER (1) -------- (None) > --- PROPULSION (5) --- Flight Unit > --- UTILITY (3) ------ Machine Analyzer Target Analyzer > --- WEAPON (2) ------- Heavy Rocket Launcher > --- INVENTORY (5) ---- Sensor Array Improved Medium Laser Peak State ------------ > --- POWER ------------ Light Nuclear Core > --- PROPULSION ------- Flight Unit Flight Unit > --- UTILITY ---------- Machine Analyzer Target Analyzer Reaction Control System > --- WEAPON ----------- Heavy Rocket Launcher > --- INVENTORY -------- Sensor Array Improved Medium Laser [Rating: 18] Favorites ----------- Power Ion Engine Engine Ion Engine Power Core Light Nuclear Core Propulsion Flight Unit Leg Aluminum Leg Wheel Compact Wheel Flight Unit Flight Unit Utility Small Storage Unit Device Sensor Array Storage Small Storage Unit Processor Machine Analyzer Weapon Light Assault Rifle Energy Gun Medium Laser Ballistic Gun Light Assault Rifle Launcher Heavy Rocket Launcher Slashing Weapon Axe Build | -11 -10 -10 -9 -8 ------- Run | Jun Mat Min Mat Mat Slots Evolved 4 | . . . 2 2 Power . | . . . . . Propulsion 3 | . . . 2 1 Utility 1 | . . . . 1 Weapon . | . . . . . Parts Attached 36 | . 3 3 4 26 Power 3 | . 1 . . 2 Engine 2 | . 1 . . 1 Core 1 | . . . . 1 Reactor . | . . . . . Propulsion 17 | . 1 3 3 10 Treads . | . . . . . Leg . | . . . . . Wheel 1 | . 1 . . . Hover . | . . . . . Flight 16 | . . 3 3 10 Utility 8 | . 1 . . 7 Device 5 | . 1 . . 4 Storage . | . . . . . Processor 3 | . . . . 3 Hackware . | . . . . . Protection . | . . . . . Artifact . | . . . . . Weapon 8 | . . . 1 7 Energy Gun 3 | . . . 1 2 Energy Cannon . | . . . . . Ballistic Gun . | . . . . . Ballistic Cannon . | . . . . . Launcher 1 | . . . . 1 Special Weapon . | . . . . . Impact Weapon . | . . . . . Slashing Weapon 4 | . . . . 4 Piercing Weapon . | . . . . . Special Melee Weapon . | . . . . . Unidentified Prototypes 1 | . . . . 1 Parts Lost 18 | . . 1 1 16 Power 2 | . . . . 2 Propulsion 11 | . . 1 1 9 Utility 3 | . . . . 3 Weapon 2 | . . . . 2 Highest Loss Streak 8 | . . 1 1 8 To Critical Strikes . | . . . . . Average Slot Usage (%) 72 | . 82 72 86 57 Engine 6 | . 14 1 . 4 Leg 5 | . 16 . . . Wheel 2 | . 5 1 . . Flight 17 | . . 25 44 18 Device 9 | . 3 14 11 11 Storage 9 | . 14 14 11 2 Processor 3 | . . . . 10 Energy Gun 8 | . 14 1 9 6 Ballistic Gun 8 | . 14 14 11 . Naked Turns . | . . . . . Heaviest Build 15 | 13 13 12 10 15 Greatest Support 20 | 20 20 16 16 16 Greatest Overweight (x) 3 | . . . . 3 Average Overweight (x) . | . . . . . Largest Inventory Capacity 8 | . 8 8 8 8 Average Capacity 7 | . 8 8 8 5 Most Carried 8 | . 8 8 7 5 Average Carried 5 | . 6 7 4 4 Final Capacity 8 | 8 8 8 8 5 Final Carried 8 | 6 8 8 5 2 Class Distribution -------------------- 72% | Mutant 13% | Scout 8% | Scavenger-Mutant 6% | Scavenger-Sprinter Dominant Class ---------------- Mutant | -10/Materials Mutant | -10/Mines Scavenger-Mutant | -9/Materials Mutant | -8/Materials Resources | -11 -10 -10 -9 -8 ----------- Run | Jun Mat Min Mat Mat Matter Collected 342 | 200 11 65 . 66 Remotely . | . . . . . Salvage Created 460 | . 135 . . 325 Parts 39 | . 15 . . 24 Haulers Intercepted 1 | . 1 . . . Recyclers Shooed . | . . . . . Parts Field Recycled . | . . . . . Retrieved Matter . | . . . . . Parts Self-Destructed . | . . . . . Prevented . | . . . . . Kills | -11 -10 -10 -9 -8 ------- Run | Jun Mat Min Mat Mat Combat Hostiles Destroyed 18 | . 5 . . 13 Melee 6 | . . . . 6 Guns 10 | . 5 . . 5 AOE 2 | . . . . 2 Classes Destroyed 5 | . 3 . . 2 Hauler 1 | . 1 . . . Watcher 1 | . 1 . . . Swarmer 13 | . 5 . . 8 Grunt 4 | . . . . 4 Sentry 1 | . . . . 1 Best Kill Streak 6 | . 4 . . 6 Combat Bots Only 6 | . 3 . . 6 Max Kills in Single Turn 2 | . 1 . . 2 Gunslinging . | . . . . . Exploded 2 | . . . . 2 Melee 1 | . . . . 1 Uniques/NPCs Destroyed . | . . . . . Combat | -11 -10 -10 -9 -8 -------- Run | Jun Mat Min Mat Mat Damage Taken 1472 | . 218 91 132 1031 Core 493 | . 60 44 10 379 Absorbed by Shields . | . . . . . Core Remaining (%) 85 | 100 . 58 97 . Volleys Fired 39 | . 21 . . 18 Largest 2 | . 2 . . 2 Hottest 113 | . 70 . . 113 Shots Fired 68 | . 42 . . 26 Gun 63 | . 42 . . 21 Cannon . | . . . . . Launcher 5 | . . . . 5 Special . | . . . . . Kinetic 21 | . 21 . . . Thermal 42 | . 21 . . 21 Explosive 5 | . . . . 5 Electromagnetic . | . . . . . Robot Hit Streak 6 | . 4 . . 6 Robot Miss Streak 4 | . 4 . . 1 Penetration Max . | . . . . . Secondary Targets 3 | . 3 . . . Max Gunslinging Chain 1 | . 1 . . . Shots Hit Robots 45 | . 23 . . 22 Core Hits 27 | . 11 . . 16 Critical Kills . | . . . . . Critical Parts Destroyed 1 | . 1 . . . Critical Strikes 3 | . 2 . . 1 Burn 2 | . 1 . . 1 Destroy 1 | . 1 . . . Melee Attacks 18 | . . . . 18 Impact . | . . . . . Slashing 18 | . . . . 18 Piercing . | . . . . . Sneak Attacks . | . . . . . Combat Hostiles . | . . . . . Follow-up Attacks . | . . . . . Damage Inflicted 898 | . 233 . . 665 Guns 459 | . 233 . . 226 Cannons . | . . . . . Explosions 180 | . . . . 180 Melee 259 | . . . . 259 Ramming . | . . . . . Kinetic 96 | . 96 . . . Thermal 363 | . 137 . . 226 Explosive 180 | . . . . 180 Electromagnetic . | . . . . . Impact . | . . . . . Slashing 259 | . . . . 259 Piercing . | . . . . . Highest Corruption . | . . . . . Average Corruption . | . . . . . Corruption Purged . | . . . . . Corruption Blocked . | . . . . . Overload Shots . | . . . . . Overflow Damage . | . . . . . Projectiles . | . . . . . Explosions . | . . . . . Melee . | . . . . . Knockbacks . | . . . . . Impact . | . . . . . Kinetic . | . . . . . Secondary . | . . . . . Self-Inflicted Damage . | . . . . . Shots . | . . . . . Rammed . | . . . . . Targets Rammed . | . . . . . Kicked . | . . . . . Crushed . | . . . . . Highest Temperature 213 | . 212 . 11 213 Average Temperature 107 | . 88 . 7 140 Received Heat Transfer 444 | . . . 93 351 Effects 1 | . . . . 1 Energy Bleed 1 | . . . . 1 Siege Activations . | . . . . . Robots Corrupted . | . . . . . Combat Hostiles . | . . . . . Parts Fried . | . . . . . Impact Corruptions . | . . . . . Robots Melted . | . . . . . Combat Hostiles . | . . . . . Parts Melted 5 | . 1 . . 4 Heat Transferred 1073 | . 481 . . 592 Parts Sabotaged . | . . . . . Parts Stolen . | . . . . . Parts Stripped . | . . . . . Power Chain Reactions . | . . . . . Missiles Intercepted . | . . . . . Alert | -11 -10 -10 -9 -8 ------- Run | Jun Mat Min Mat Mat Peak Influence 408 | . 194 110 127 408 Initial 75 | . . 75 42 53 Average 131 | . 110 98 72 185 Maximum Alert Level 2 | . . . . 2 Low Security (%) 88 | . 100 100 100 69 Level 1 10 | . . . . 28 Level 2 . | . . . . 2 Level 3 . | . . . . . Level 4 . | . . . . . Level 5 . | . . . . . High Security . | . . . . . Max Security . | . . . . . Squads Dispatched 7 | . . . 2 5 Investigation 3 | . . . . 3 Extermination . | . . . . . Reinforcement 4 | . . . 2 2 Assault . | . . . . . Garrison . | . . . . . Intercept . | . . . . . Searches Triggered . | . . . . . Construction Impeded . | . . . . . Haulers Reinforced . | . . . . . Active Scanning Responses . | . . . . . Cargo Convoy Interrupts . | . . . . . Stealth | -11 -10 -10 -9 -8 --------- Run | Jun Mat Min Mat Mat Distress Signals 5 | . 2 . . 3 Communications Jammed . | . . . . . Distress Signals . | . . . . . Times Spotted 73 | . 9 6 12 46 Peak Tracking Total 13 | . 4 3 9 13 Tactical Retreats 14 | . 2 1 3 8 Traps | -11 -10 -10 -9 -8 ------- Run | Jun Mat Min Mat Mat Traps Triggered 1 | . . . . 1 Indirectly . | . . . . . Trap Hack Attempts . | . . . . . Triggered . | . . . . . Disarmed . | . . . . . Reprogrammed . | . . . . . Reused . | . . . . . Traps Extracted . | . . . . . Installed . | . . . . . Triggered . | . . . . . Machines | -11 -10 -10 -9 -8 ---------- Run | Jun Mat Min Mat Mat Machines Disabled 1 | . . . . 1 Max in Single Turn 1 | . . . . 1 Machines Repaired . | . . . . . Machines Sabotaged . | . . . . . Overloaded Fab Kills . | . . . . . Hacking | -11 -10 -10 -9 -8 --------- Run | Jun Mat Min Mat Mat Machines Accessed 6 | . . 1 1 4 Terminals 3 | . . . 1 2 Fabricators . | . . . . . Repair Stations 1 | . . . . 1 Recycling Units 1 | . . . . 1 Scanalyzers . | . . . . . Garrison Access . | . . . . . Total Hacks 13 | . . 1 2 10 Successful 7 | . . 1 1 5 Failed 6 | . . . 1 5 Catastrophic 3 | . . . 1 2 Database Lockouts . | . . . . . Manual 1 | . . . 1 . Terminals 9 | . . . 2 7 Fabricators . | . . . . . Repair Stations 2 | . . . . 2 Recycling Units 1 | . . . . 1 Scanalyzers . | . . . . . Garrison Access . | . . . . . Terminal Hacks 6 | . . 1 1 4 Prototype ID Bank 1 | . . . 1 . Open Door 1 | . . 1 . . Unreport Threat 2 | . . . . 2 Zone Layout 2 | . . . . 2 Fabricator Hacks . | . . . . . Repair Station Hacks . | . . . . . Recycling Unit Hacks 1 | . . . . 1 Report Inventory 1 | . . . . 1 Scanalyzer . | . . . . . Garrison Access Hacks . | . . . . . Unauthorized Hacks . | . . . . . Terminals . | . . . . . Fabricators . | . . . . . Repair Stations . | . . . . . Recycling Units . | . . . . . Scanalyzers . | . . . . . Garrison Access . | . . . . . Data Cores Recovered . | . . . . . Used . | . . . . . Hacking Detections 5 | . . . 1 4 Full Trace Events 3 | . . . . 3 Feedback Events . | . . . . . Feedback Blocked . | . . . . . Robot Schematics Acquired . | . . . . . Robots Built . | . . . . . Authchips . | . . . . . Time . | . . . . . Total Robot Build Rating . | . . . . . Part Schematics Acquired . | . . . . . Parts Built . | . . . . . Authchips . | . . . . . Time . | . . . . . Total Part Build Rating . | . . . . . Parts Repaired . | . . . . . Time . | . . . . . Parts Recycled . | . . . . . Recycled Matter . | . . . . . Retrieved Matter . | . . . . . Retrieved Components . | . . . . . Parts Scanalyzed . | . . . . . Part Schematics Acquired . | . . . . . Parts Damaged . | . . . . . Bothacking | -11 -10 -10 -9 -8 ------------ Run | Jun Mat Min Mat Mat Used RIF Installer . | . . . . . Robots Hacked . | . . . . . Non-combat . | . . . . . Combat . | . . . . . Robot Hacks Applied . | . . . . . Relay Couplers Released . | . . . . . Fabnet Peak Effective % . | . . . . . Robots Rewired . | . . . . . Allies Hacked . | . . . . . Hacks Repelled . | . . . . . Allies | -11 -10 -10 -9 -8 -------- Run | Jun Mat Min Mat Mat Total Allies . | . . . . . Largest Group . | . . . . . Highest-Rated Group . | . . . . . Highest-Rated Ally . | . . . . . Total Orders . | . . . . . Ally Attacks . | . . . . . Total Damage . | . . . . . Kills . | . . . . . Allies Corrupted . | . . . . . Allies Melted . | . . . . . Intel | -11 -10 -10 -9 -8 ------- Run | Jun Mat Min Mat Mat Robot Analysis Total . | . . . . . Derelict Logs Recovered 1 | . . 1 . . Drone Launches . | . . . . . Drone Recoveries . | . . . . . Exploration | -11 -10 -10 -9 -8 ------------- Run | Jun Mat Min Mat Mat Turns Passed 797 | . 260 127 110 300 Spaces Moved 1016 | 1 171 287 192 365 Core . | . . . . . Treads . | . . . . . Legs 70 | 1 69 . . . Wheels 116 | . 102 14 . . Hover . | . . . . . Flight 830 | . . 273 192 365 Fastest Speed 31 | 120 100 37 31 31 Average Speed 48 | 120 108 40 31 37 Slowest Speed 280 | 120 120 100 34 280 Overloaded Moves . | . . . . . Propulsion Burnouts . | . . . . . Robots Hopped 15 | . . 2 7 6 Cave-ins Triggered . | . . . . . Exploration Rate (%) 36 | 2 42 63 25 52 Regions Visited 4 Branch Regions 1 Pre-discovered Areas . | . . . . . Known Exits Taken . | . . . . . Unknown Exits Taken 4 | 1 1 1 1 . Scrap Searched 1 | . . 1 . . Spaces Dug 3 | . . . . 3 Terrain Destroyed 8 | . . . . 8 Melee 3 | . . . . 3 Projectile . | . . . . . AOE 5 | . . . . 5 Terrain Rammed . | . . . . . Walls Destroyed . | . . . . . Machines Disabled . | . . . . . Actions | -11 -10 -10 -9 -8 --------- Run | Jun Mat Min Mat Mat Total 1210 | . 211 298 233 468 Wait 66 | . . 3 44 19 Move 984 | . 170 283 178 353 Hop 13 | . . 1 6 6 Pick Up 25 | . 9 4 1 11 Fast Attach 8 | . 1 . . 7 Attach 25 | . 2 3 4 16 Detach 8 | . . . . 8 Swap 3 | . . . . 3 Drop 21 | . 8 4 . 9 Fire 39 | . 21 . . 18 Melee 18 | . . . . 18 Ram . | . . . . . Kick . | . . . . . Crush . | . . . . . Escape Stasis . | . . . . . Rewire . | . . . . . Trap . | . . . . . Miscellaneous . | . . . . . Route ------- -11/Junkyard -10/Materials (discovered 2 exits: *Mat / *Min) -10/Mines -9/Materials -8/Materials (discovered 1 exit: [*Fac]) History --------- Turn | Location | Event 1 | -11/Junkyard | Discovered new exit (range 0) 1 | -11/Junkyard | Entered Materials 189 | -10/Materials | Discovered new exit (range 10) 250 | -10/Materials | Discovered new exit (range 10) 261 | -10/Materials | Entered Mines 314 | -10/Mines | Build established: Mutant 317 | -10/Mines | Met a Derelict who couldn't figure out how to use a Trap Extractor 340 | -10/Mines | Met a Derelict bent on vengeance 371 | -10/Mines | Learned 4 Materials zone layouts 386 | -10/Mines | Discovered new exit (range 4) 388 | -10/Mines | Entered Materials 388 | -9/Materials | Evolved 2 slots: Propulsion x2 462 | -9/Materials | Discovered new exit (range 12) 498 | -9/Materials | Entered another Materials area 498 | -8/Materials | Evolved 2 slots: Propulsion x1, Utility x1 605 | -8/Materials | Lost 3 parts (2n1w) 753 | -8/Materials | Core integrity fell below 50% 774 | -8/Materials | Discovered new exit (range 15) 798 | -8/Materials | Self-destructed Last Messages --------------- 00767_ Slug penetrates Wall. 00768_ K-01 Serf collects debris. 00768_ Acquired 20 matter. 00768_ Acquired 13 matter. 00768_ Penetrated by Slug. 00769_ Acquired Flight Unit. 00771_ Penetrated by Slug. 00771_ Flight Unit destroyed. 00772_ K-01 Serf collects debris. 00774_ EXIT=FOUND 00775_ K-01 Serf collects debris. 00781_ Acquired Hvy. Rocket Launcher. 00782_ Flight Unit destroyed. 00786_ Penetrated by Slug. 00790_ Flight Unit destroyed. 00792_ Penetrated by Slug. 00792_ Reaction Control System destroyed. 00793_ Lgt. Nuclear Core destroyed. 00796_ Slug penetrates A-02 Transporter. 00796_ A-02 Transporter destroyed. Map ----- +----------------------------------------------------+ | ?????????????????????????????# """"" ### "" | | ?????????????????????????????# """"" # | | ?????????????????????????????# """"" # / | | ?????????????????????????????# """ + / | | ?????????????????????????????# # | | ?????????????????????????????## # | | ??????????????????????????????# """ ###### | | ??????????????????????????????# """ # | | ??????????????????????????????# """ # | | ??????????????????????????????# # | | ??????????????????????????????# !*# * [ | | ??????????????????????????????# #[* | | ??????????????????????????????# =* / %% | | ??????????????????????????????# """ % #*= | | ??????????????????????????????# """" =%#=% | | ???????????????????????????#### """" # ] | | ???????????????????????????# g """ # | | ???????????????????????????# "" # ! | | ???????????????????????????# = ###### | | ???????????????????????????# h #????? | | ???????????????????????????# ##???? | | ????????????????????????#### #???? | | ????????????????????????#!= #???? | | ????????????????????#####%! +???? | | ????????????????????#]] != !* #???? | | ????????????????????#] @ !* #???? | | ????????????????????#!! #???? | | ????????????????????#!! +???? | | ????????????????????#!! ######???? | | ????????????????????#!! ######## #????????? | | ????????????????????#####??????# ### < #????????? | | ??????????????????????????????? #?# #????????? | | ???????????????????????????????!==#?#####????????? | | ??????????????????????????????!!==#??????????????? | | ??????????????????????????????#####??????????????? | | ?????????????????????????????????????????????????? | | ?????????????????????????????????????????????????? | | ?????????????????????????????????????????????????? | | ?????????????????????????????????????????????????? | | ?????????????????????????????????????????????????? | | | | | | | | | | | | | | | | | | | | | +----------------------------------------------------+ Best States ------------- Heat Dissipation 31 Energy Generation 14 Energy Capacity 250 Matter Stores 300 Matter Capacity 300 Sight Range 16 Robot Scan Range 14 Terrain Scan Density 10 Base Temperature (-) 100 Evasion (%) 71 Target Analysis 5 Item Schematics ----------------- None Robot Schematics ------------------ None Fabricated ------------ Nothing Alien Tech Used ----------------- None Achievements -------------- None Challenges ------------ None Game ------ Seed DerelictChargeScythe Manual? 0 Play Time 00:17:58 Cumulative 419.3 hours Start 2023.03.06 @ 07:33:45 End 2023.03.06 @ 07:49:06 Sessions 1 Manual Loads 0 Difficulty Rogue Special Mode None Game No. 475 Rogue 475 Adventurer 0 Explorer 0 Win Type - Total 0 Types 0/0/0/0/0/0/0/0/0 Lore% 55 Gallery% 77 Achievement% 63 Wizard Run 0 Options --------- ASCII 0 Keyboard 0 Movement Mouse Keybinds 0 Fullscreen 2 Font 24/Smallcaps Map View 76x50 Tactical HUD 1 Map Filters NONE Filters NONE Steam 1 RUN: 674448de-b6d5-4228-b656-1afc5ac08d96